fUST/lending_fUST_20240613
["ID","MTS","AMOUNT","RATE_DAILY","PERIOD"]
[329289827,1718218253978,-925.88,0.00018356,2]
[329289828,1718218253990,-1952.53,0.00018356,2]
[329289829,1718218254003,-151.0,0.00018356,2]
[329289830,1718218254014,-1416.41,0.00018356,2]
[329289831,1718218254025,-500.0,0.00018356,2]
[329289832,1718218254039,-169.424614,0.00018439,2]
[329289833,1718218254050,-194.815119,0.00018439,2]
[329289834,1718218254076,-169.404171,0.00018439,2]
[329289835,1718218254088,-338.84923,0.00018439,2]
[329289836,1718218254099,-389.630238,0.00018439,2]
[329289837,1718218254111,-202.7,0.0001848,2]
[329289838,1718218254124,-155.0,0.0001849,2]
[329289839,1718218254134,-606.91207968,0.000185,2]
[329289840,1718218254146,-153.0,0.00018548,2]
[329289841,1718218254157,-153.0,0.00018548,2]
[329289842,1718218254169,-153.0,0.00018548,2]
[329289843,1718218254181,-153.0,0.00018548,2]
[329289844,1718218254194,-306.0,0.0001855,2]
[329289845,1718218254205,-153.0,0.00018565,2]
[329289846,1718218254217,-166.666666,0.00018575,2]
[329289847,1718218254228,-216.14213589,0.00018628,2]
[329289848,1718218254240,-151.0,0.0001863,2]
[329289849,1718218254253,-714.94,0.0001863,2]
[329289850,1718218254265,-619.2,0.0001863,2]
[329289851,1718218254276,-500.0,0.0001863,2]
[329289852,1718218254287,-500.0,0.0001863,2]
[329289853,1718218254299,-628.72,0.0001863,2]
[329289854,1718218254311,-845.56,0.0001863,2]
[329289855,1718218254323,-500.0,0.0001863,2]
[329289856,1718218254333,-500.0,0.0001863,2]
[329289857,1718218254344,-500.0,0.0001863,2]
[329289858,1718218254356,-813.0,0.0001863,2]
[329289859,1718218254372,-915.71,0.0001863,2]
[329289860,1718218254382,-706.56,0.0001863,2]
[329289861,1718218254392,-151.0,0.0001863,2]
[329289862,1718218254404,-1091.02,0.0001863,2]
[329289863,1718218254415,-500.0,0.0001863,2]
[329289864,1718218254425,-500.0,0.0001863,2]
[329289865,1718218254435,-151.0,0.0001863,2]
[329289866,1718218254446,-151.0,0.0001863,2]
[329289867,1718218254457,-500.0,0.0001863,2]
[329289868,1718218254467,-207.216664,0.0001863,2]
[329289869,1718218254477,-207.216664,0.0001863,2]
[329289870,1718218254487,-151.0,0.0001863,2]
[329289871,1718218254498,-500.0,0.0001863,2]
[329289872,1718218254508,-195.912788,0.0001863,2]
[329289873,1718218254517,-195.912788,0.0001863,2]
[329289874,1718218254528,-3695.79,0.0001863,2]
[329289875,1718218254539,-996.12,0.0001863,2]
[329289876,1718218254549,-642.09,0.0001863,2]
[329289877,1718218254560,-5333.99,0.0001863,2]
[329289878,1718218254571,-500.0,0.0001863,2]
[329289879,1718218254582,-1006.0,0.0001863,2]
[329289880,1718218254593,-500.0,0.0001863,2]
[329289881,1718218254604,-739.73,0.0001863,2]
[329289882,1718218254617,-1267.92,0.0001863,2]
[329289883,1718218254629,-500.0,0.0001863,2]
[329289884,1718218254639,-8537.1,0.0001863,2]
[329289885,1718218254651,-599.08,0.0001863,2]
[329289886,1718218254663,-500.0,0.0001863,2]
[329289887,1718218254674,-5692.93,0.0001863,2]
[329289888,1718218254685,-2249.61,0.0001863,2]
[329289889,1718218254696,-2948.13,0.0001863,2]
[329289890,1718218254709,-500.0,0.0001863,2]
[329289891,1718218254719,-963.91,0.0001863,2]
[329289892,1718218254730,-6539.54,0.0001863,2]
[329289893,1718218254741,-800.82,0.0001863,2]
[329289894,1718218254753,-477.42,0.0001863,2]
[329289895,1718218254764,-691.21,0.0001863,2]
[329289896,1718218254776,-276.02282589,0.0001863,2]
[329289897,1718218254786,-668.25,0.0001863,2]
[329289898,1718218254797,-1002.76,0.0001863,2]
[329289899,1718218254808,-500.0,0.0001863,2]
[329289900,1718218254819,-500.0,0.0001863,2]
[329289901,1718218254831,-500.0,0.0001863,2]
[329289902,1718218254842,-500.0,0.0001863,2]
[329289903,1718218254854,-500.0,0.0001863,2]
[329289904,1718218254871,-2159.14,0.0001863,2]
[329289905,1718218254881,-500.0,0.0001863,2]
[329289906,1718218254892,-1686.97,0.0001863,2]
[329289907,1718218254903,-826.24,0.0001863,2]
[329289908,1718218254914,-789.26,0.0001863,2]
[329289909,1718218254926,-500.0,0.0001863,2]
[329289910,1718218254937,-925.88,0.0001863,2]
[329289911,1718218254949,-1952.53,0.0001863,2]
[329289912,1718218254960,-1416.41,0.0001863,2]
[329289913,1718218254971,-250.0,0.0001863,2]
[329289914,1718218254981,-169.424614,0.00018669,2]
[329289915,1718218254992,-194.815119,0.00018669,2]
[329289916,1718218255003,-338.84923,0.00018669,2]
[329289917,1718218255014,-389.630238,0.00018669,2]
[329289918,1718218255025,-322.3709205,0.00018678,2]
[329289919,1718218255037,-202.7,0.00018697,2]
[329289920,1718218255050,-153.0,0.00018722,2]
[329289921,1718218255081,-169.424614,0.000189,2]
[329289922,1718218255093,-194.815119,0.000189,2]
[329289923,1718218255103,-338.84923,0.000189,2]
[329289924,1718218255115,-389.630238,0.000189,2]
[329289925,1718218255127,-5154.07753911,0.000189,2]
[329289926,1718218255137,-3244.00216943,0.000189,2]
[329289927,1718218255148,-714.94,0.00018904,2]
[329289928,1718218255159,-619.2,0.00018904,2]
[329289929,1718218255169,-500.0,0.00018904,2]
[329289930,1718218255179,-500.0,0.00018904,2]
[329289931,1718218255190,-628.72,0.00018904,2]
[329289932,1718218255201,-845.56,0.00018904,2]
[329289933,1718218255211,-151.0,0.00018904,2]
[329289934,1718218255221,-500.0,0.00018904,2]
[329289935,1718218255231,-500.0,0.00018904,2]
[329289936,1718218255242,-151.0,0.00018904,2]
[329289937,1718218255252,-151.0,0.00018904,2]
[329289938,1718218255262,-269.362452,0.00018904,2]
[329289939,1718218255273,-500.0,0.00018904,2]
[329289940,1718218255284,-813.0,0.00018904,2]
[329289941,1718218255295,-915.71,0.00018904,2]
[329289942,1718218255305,-151.0,0.00018904,2]
[329289943,1718218255315,-151.0,0.00018904,2]
[329289944,1718218255327,-151.0,0.00018904,2]
[329289945,1718218255338,-706.56,0.00018904,2]
[329289946,1718218255350,-1091.02,0.00018904,2]
[329289947,1718218255362,-500.0,0.00018904,2]
[329289948,1718218255374,-500.0,0.00018904,2]
[329289949,1718218255385,-500.0,0.00018904,2]
[329289950,1718218255397,-3695.79,0.00018904,2]
[329289951,1718218255409,-996.12,0.00018904,2]
[329289952,1718218255420,-642.09,0.00018904,2]
[329289953,1718218255431,-5333.99,0.00018904,2]
[329289954,1718218255442,-500.0,0.00018904,2]
[329289955,1718218255454,-1006.0,0.00018904,2]
[329289956,1718218255466,-151.0,0.00018904,2]
[329289957,1718218255478,-500.0,0.00018904,2]
[329289958,1718218255490,-739.73,0.00018904,2]
[329289959,1718218255502,-151.0,0.00018904,2]
[329289960,1718218255514,-1267.92,0.00018904,2]
[329289961,1718218255525,-500.76,0.00018904,2]
[329289962,1718218255536,-8537.1,0.00018904,2]
[329289963,1718218255548,-599.08,0.00018904,2]
[329289964,1718218255559,-638.83821086,0.00018904,2]
[329289965,1718218255571,-151.0,0.00018904,2]
[329289966,1718218255582,-151.0,0.00018904,2]
[329289967,1718218255593,-5692.93,0.00018904,2]
[329289968,1718218255604,-2249.61,0.00018904,2]
[329289969,1718218255617,-227.987282,0.00018904,2]
[329289970,1718218255628,-227.987282,0.00018904,2]
[329289971,1718218255641,-2948.13,0.00018904,2]
[329289972,1718218255652,-151.0,0.00018904,2]
[329289973,1718218255663,-500.0,0.00018904,2]
[329289974,1718218255674,-963.91,0.00018904,2]
[329289975,1718218255687,-151.0,0.00018904,2]
[329289976,1718218255698,-6539.54,0.00018904,2]
[329289977,1718218255710,-800.82,0.00018904,2]
[329289978,1718218255722,-283.963508,0.00018904,2]
[329289979,1718218255734,-283.963508,0.00018904,2]
[329289980,1718218255746,-691.21,0.00018904,2]
[329289981,1718218255758,-668.25,0.00018904,2]
[329289982,1718218255769,-1002.76,0.00018904,2]
[329289983,1718218255781,-500.0,0.00018904,2]
[329289984,1718218255792,-500.0,0.00018904,2]
[329289985,1718218255803,-500.0,0.00018904,2]
[329289986,1718218255815,-500.0,0.00018904,2]
[329289987,1718218255827,-500.0,0.00018904,2]
[329289988,1718218255840,-2159.14,0.00018904,2]
[329289989,1718218255856,-500.0,0.00018904,2]
[329289990,1718218255873,-151.0,0.00018904,2]
[329289991,1718218255888,-376.427566,0.00018904,2]
[329289992,1718218255900,-376.427566,0.00018904,2]
[329289993,1718218255911,-1686.97,0.00018904,2]
[329289994,1718218255922,-826.24,0.00018904,2]
[329289995,1718218255936,-789.26,0.00018904,2]
[329289996,1718218255949,-500.0,0.00018904,2]
[329289997,1718218255962,-925.88,0.00018904,2]
[329289998,1718218255974,-1952.53,0.00018904,2]
[329289999,1718218255987,-289.646229,0.00018904,2]
[329290000,1718218255998,-1416.41,0.00018904,2]
[329290001,1718218256011,-202.7,0.00018914,2]
[329290002,1718218256024,-151.0,0.00018914,2]
[329290003,1718218256038,-163.86094696,0.00019,2]
[329290004,1718218256050,-7270.73643792,0.00019,2]
[329290005,1718218256081,-5281.92082876,0.00019029,2]
[329290006,1718218256093,-499.0,0.00019094,2]
[329290007,1718218256105,-1750.0,0.00019094,2]
[329290008,1718218256126,-6915.40097902,0.000191,2]
[329290009,1718218256139,-169.424614,0.0001913,2]
[329290010,1718218256150,-194.815119,0.0001913,2]
[329290011,1718218256162,-338.84923,0.0001913,2]
[329290012,1718218256173,-389.630238,0.0001913,2]
[329290013,1718218256185,-202.7,0.00019131,2]
[329290014,1718218256196,-151.0,0.00019131,2]
[329290015,1718218256208,-4929.44810731,0.00019178,13]
[329290016,1718218256220,-627.34509852,0.00019178,2]
[329290017,1718218256233,-567.49236527,0.00019178,2]
[329290018,1718218256245,-500.0,0.00019178,2]
[329290019,1718218256261,-230.94930506,0.00019178,2]
[329290020,1718218256274,-637.80797361,0.00019178,2]
[329290021,1718218256287,-432.22617188,0.00019178,2]
[329290022,1718218256300,-499.63710141,0.00019178,2]
[329290023,1718218256313,-500.0,0.00019178,2]
[329290024,1718218256324,-500.0,0.00019178,2]
[329290025,1718218256337,-500.0,0.00019178,2]
[329290026,1718218256349,-500.0,0.00019178,2]
[329290027,1718218256363,-287.79571924,0.00019178,2]
[329290028,1718218256375,-500.0,0.00019178,2]
[329290029,1718218256387,-500.0,0.00019178,2]
[329290030,1718218256399,-500.0,0.00019178,2]
[329290031,1718218256410,-500.0,0.00019178,2]
[329290032,1718218256422,-500.0,0.00019178,2]
[329290033,1718218256435,-500.0,0.00019178,2]
[329290034,1718218256446,-500.0,0.00019178,2]
[329290035,1718218256457,-500.0,0.00019178,2]
[329290036,1718218256468,-500.0,0.00019178,2]
[329290037,1718218256479,-500.0,0.00019178,2]
[329290038,1718218256490,-202.65193651,0.00019178,2]
[329290039,1718218256501,-500.0,0.00019178,2]
[329290040,1718218256512,-500.0,0.00019178,2]
[329290041,1718218256523,-500.0,0.00019178,2]
[329290042,1718218256534,-500.0,0.00019178,2]
[329290043,1718218256555,-500.0,0.00019178,2]
[329290044,1718218256569,-500.0,0.00019178,2]
[329290045,1718218256580,-500.0,0.00019178,2]
[329290046,1718218256592,-500.0,0.00019178,2]
[329290047,1718218256604,-500.0,0.00019178,2]
[329290048,1718218256618,-500.0,0.00019178,2]
[329290049,1718218256631,-500.0,0.00019178,2]
[329290050,1718218256644,-500.0,0.00019178,2]
[329290051,1718218256655,-500.0,0.00019178,2]
[329290052,1718218256668,-500.0,0.00019178,2]
[329290053,1718218256680,-500.0,0.00019178,2]
[329290054,1718218256692,-500.0,0.00019178,2]
[329290055,1718218256705,-500.0,0.00019178,2]
[329290056,1718218256718,-500.0,0.00019178,2]
[329290057,1718218256730,-500.0,0.00019178,2]
[329290058,1718218256742,-500.0,0.00019178,2]
[329290059,1718218256754,-500.0,0.00019178,2]
[329290060,1718218256765,-500.0,0.00019178,2]
[329290061,1718218256777,-500.0,0.00019178,2]
[329290062,1718218256789,-500.0,0.00019178,2]
[329290063,1718218256801,-500.0,0.00019178,2]
[329290064,1718218256813,-500.0,0.00019178,2]
[329290065,1718218256825,-500.0,0.00019178,2]
[329290066,1718218256836,-500.0,0.00019178,2]
[329290067,1718218256848,-329.8149773,0.00019178,2]
[329290068,1718218257566,-500.0,0.00016438,2]
[329290069,1718218257576,-500.0,0.00016438,2]
[329290070,1718218257585,-500.0,0.00016712,2]
[329290071,1718218257595,-500.0,0.00016986,2]
[329290072,1718218257605,-500.0,0.00016986,2]
[329290073,1718218257616,-500.0,0.0001726,2]
[329290074,1718218257626,-469.92,0.0001726,2]
[329290075,1718218257636,-500.0,0.00017534,2]
[329290076,1718218257646,-151.0,0.00017808,2]
[329290077,1718218257656,-500.0,0.00017808,2]
[329290078,1718218257668,-500.0,0.00018082,2]
[329290079,1718218257680,-151.0,0.00018356,2]
[329290080,1718218257693,-500.0,0.00018356,2]
[329290081,1718218257704,-500.0,0.0001863,2]
[329290082,1718218257715,-500.0,0.0001863,2]
[329290083,1718218257725,-500.0,0.00018904,2]
[329290084,1718218257736,-151.0,0.00018904,2]
[329290085,1718218257749,-500.0,0.00018904,2]
[329290086,1718218257759,-1980.46998176,0.00018982,2]
[329290087,1718218257772,-2242.21999984,0.00018982,2]
[329290088,1718218257785,-441.16585158,0.00018982,2]
[329290089,1718218257823,-500.0,0.00016712,2]
[329290090,1718218257833,-500.0,0.00016986,2]
[329290091,1718218257844,-508.02497831,0.00018982,2]
[329290092,1718218257857,-170.1850227,0.00019178,2]
[329290093,1718218257870,-500.0,0.00019178,2]
[329290094,1718218257880,-500.0,0.00019178,2]
[329290095,1718218257892,-500.0,0.00019178,2]
[329290096,1718218257903,-500.0,0.00019178,2]
[329290097,1718218257914,-500.0,0.00019178,2]
[329290098,1718218257925,-500.0,0.00019178,2]
[329290099,1718218257937,-500.0,0.00019178,2]
[329290100,1718218257947,-500.0,0.00019178,2]
[329290101,1718218257959,-500.0,0.00019178,2]
[329290102,1718218257969,-500.0,0.00019178,2]
[329290103,1718218257980,-500.0,0.00019178,2]
[329290104,1718218257992,-500.0,0.00019178,2]
[329290105,1718218258002,-500.0,0.00019178,2]
[329290106,1718218258012,-500.0,0.00019178,2]
[329290107,1718218258022,-500.0,0.00019178,2]
[329290108,1718218258032,-500.0,0.00019178,2]
[329290109,1718218258043,-192.43713757,0.00019178,2]
[329290110,1718218258053,-500.0,0.00019178,2]
[329290111,1718218258074,-500.0,0.00019178,2]
[329290112,1718218258085,-500.0,0.00019178,2]
[329290113,1718218258096,-500.0,0.00019178,2]
[329290114,1718218258107,-350.0,0.00019178,2]
[329290115,1718218258123,-500.0,0.00019178,2]
[329290116,1718218258133,-500.0,0.00019178,2]
[329290117,1718218258144,-500.0,0.00019178,2]
[329290118,1718218258155,-500.0,0.00019178,2]
[329290119,1718218258166,-500.0,0.00019178,2]
[329290120,1718218258177,-500.0,0.00019178,2]
[329290121,1718218258187,-619.2,0.00019178,2]
[329290122,1718218258199,-267.00528089,0.00019178,2]
[329290123,1718218258210,-500.0,0.00019178,2]
[329290124,1718218258221,-628.72,0.00019178,2]
[329290125,1718218258232,-845.56,0.00019178,2]
[329290126,1718218258243,-500.0,0.00019178,2]
[329290127,1718218258254,-377.90220211,0.00019178,2]
[329290128,1718218258270,-500.0,0.00019178,2]
[329290129,1718218258281,-813.0,0.00019178,2]
[329290130,1718218258292,-915.71,0.00019178,2]
[329290131,1718218258304,-151.0,0.00019178,2]
[329290132,1718218258314,-151.0,0.00019178,2]
[329290133,1718218258325,-706.56,0.00019178,2]
[329290134,1718218258334,-151.0,0.00019178,2]
[329290135,1718218258345,-1091.02,0.00019178,2]
[329290136,1718218258356,-500.0,0.00019178,2]
[329290137,1718218258368,-151.0,0.00019178,2]
[329290138,1718218258378,-500.0,0.00019178,2]
[329290139,1718218258387,-207.216664,0.00019178,2]
[329290140,1718218258397,-207.216664,0.00019178,2]
[329290141,1718218258407,-500.0,0.00019178,2]
[329290142,1718218258417,-195.912788,0.00019178,2]
[329290143,1718218258428,-195.912788,0.00019178,2]
[329290144,1718218258439,-996.12,0.00019178,2]
[329290145,1718218258450,-642.09,0.00019178,2]
[329290146,1718218258461,-5333.99,0.00019178,2]
[329290147,1718218258472,-226.63381427,0.00019178,2]
[329290148,1718218258483,-1006.0,0.00019178,2]
[329290149,1718218258495,-500.0,0.00019178,2]
[329290150,1718218258506,-739.73,0.00019178,2]
[329290151,1718218258517,-236.427274,0.00019178,2]
[329290152,1718218258529,-1267.92,0.00019178,2]
[329290153,1718218258539,-8537.1,0.00019178,2]
[329290154,1718218258550,-599.08,0.00019178,2]
[329290155,1718218258561,-151.0,0.00019178,2]
[329290156,1718218258573,-151.0,0.00019178,2]
[329290157,1718218258584,-5692.93,0.00019178,2]
[329290158,1718218258595,-2249.61,0.00019178,2]
[329290159,1718218258607,-225.78538615,0.00019178,2]
[329290160,1718218258741,-2.20189585,0.00019178,2]
[329290161,1718218258753,-227.987282,0.00019178,2]
[329290162,1718218258764,-2948.13,0.00019178,2]
[329290163,1718218258775,-151.0,0.00019178,2]
[329290164,1718218258786,-168.18082215,0.00019178,2]
[329290165,1718218258810,-500.0,0.0001726,2]
[329290166,1718218258822,-229.83917785,0.00019178,2]
[329290167,1718218258837,-963.91,0.00019178,2]
[329290168,1718218258848,-151.0,0.00019178,2]
[329290169,1718218258860,-572.52085486,0.00019178,2]
[329290170,1718218258878,-5967.01914514,0.00019178,2]
[329290171,1718218258889,-800.82,0.00019178,2]
[329290172,1718218258901,-283.963508,0.00019178,2]
[329290173,1718218258912,-283.963508,0.00019178,2]
[329290174,1718218258923,-691.21,0.00019178,2]
[329290175,1718218258934,-668.25,0.00019178,2]
[329290176,1718218258949,-1002.76,0.00019178,2]
[329290177,1718218258960,-179.56107854,0.00019178,2]
[329290178,1718218259005,-500.0,0.00017534,2]
[329290179,1718218259017,-500.0,0.00017808,2]
[329290180,1718218259029,-500.0,0.00018082,2]
[329290181,1718218259042,-43.41892146,0.00019178,2]
[329290182,1718218259060,-500.0,0.00019178,2]
[329290183,1718218259075,-325.425589,0.00019178,2]
[329290184,1718218259090,-174.574411,0.00019178,2]
[329290185,1718218259101,-500.0,0.00019178,2]
[329290186,1718218259116,-500.0,0.00019178,2]
[329290187,1718218259127,-2159.14,0.00019178,2]
[329290188,1718218259139,-500.0,0.00019178,2]
[329290189,1718218259149,-151.0,0.00019178,2]
[329290190,1718218259160,-376.427566,0.00019178,2]
[329290191,1718218259171,-376.427566,0.00019178,2]
[329290192,1718218259182,-1686.97,0.00019178,2]
[329290193,1718218259194,-826.24,0.00019178,2]
[329290194,1718218259206,-789.26,0.00019178,2]
[329290195,1718218259218,-500.0,0.00019178,2]
[329290196,1718218259230,-925.88,0.00019178,2]
[329290197,1718218259242,-1952.53,0.00019178,2]
[329290198,1718218259253,-1416.41,0.00019178,2]
[329290199,1718218259264,-500.0,0.00019178,2]
[329290200,1718218259276,-151.0,0.00019178,2]
[329290201,1718218259287,-236.90014672,0.00019178,2]
[329290202,1718218259297,-165.151759,0.00019178,2]
[329290203,1718218259308,-195.882236,0.00019178,2]
[329290204,1718218259321,-600.0,0.000192,2]
[329290205,1718218259333,-202.7,0.00019349,2]
[329290206,1718218259344,-151.0,0.00019349,2]
[329290207,1718218259355,-169.424614,0.00019361,2]
[329290208,1718218259369,-194.815119,0.00019361,2]
[329290209,1718218259381,-338.84923,0.00019361,2]
[329290210,1718218259392,-389.630238,0.00019361,2]
[329290211,1718218259403,-306.0,0.0001937,2]
[329290212,1718218259414,-600.0,0.000194,2]
[329290213,1718218259424,-223.610538,0.00019451,2]
[329290214,1718218259435,-151.0,0.00019451,2]
[329290215,1718218259446,-619.2,0.00019452,2]
[329290216,1718218259458,-500.0,0.00019452,2]
[329290217,1718218259468,-628.72,0.00019452,2]
[329290218,1718218259479,-845.56,0.00019452,2]
[329290219,1718218259489,-634.93041064,0.00019452,2]
[329290220,1718218259500,-151.0,0.00019452,2]
[329290221,1718218259511,-500.0,0.00019452,2]
[329290222,1718218259521,-813.0,0.00019452,2]
[329290223,1718218259534,-915.71,0.00019452,2]
[329290224,1718218259550,-151.0,0.00019452,2]
[329290225,1718218259565,-706.56,0.00019452,2]
[329290226,1718218259580,-1091.02,0.00019452,2]
[329290227,1718218259592,-496.67364669,0.00019452,2]
[329290228,1718218259603,-500.0,0.00019452,2]
[329290229,1718218259617,-207.216664,0.00019452,2]
[329290230,1718218259628,-207.216664,0.00019452,2]
[329290231,1718218259639,-500.0,0.00019452,2]
[329290232,1718218259651,-195.912788,0.00019452,2]
[329290233,1718218259663,-195.912788,0.00019452,2]
[329290234,1718218259678,-996.12,0.00019452,2]
[329290235,1718218259689,-642.09,0.00019452,2]
[329290236,1718218259703,-5333.99,0.00019452,2]
[329290237,1718218259720,-151.0,0.00019452,2]
[329290238,1718218259733,-285.53752982,0.00019452,2]
[329290239,1718218259760,-500.0,0.00018356,2]
[329290240,1718218259775,-720.46247018,0.00019452,2]
[329290241,1718218259788,-153.13882661,0.00019452,2]
[329290242,1718218259804,-346.86117339,0.00019452,2]
[329290243,1718218259816,-739.73,0.00019452,2]
[329290244,1718218259829,-1267.92,0.00019452,2]
[329290245,1718218259840,-8537.1,0.00019452,2]
[329290246,1718218259851,-599.08,0.00019452,2]
[329290247,1718218259864,-5692.93,0.00019452,2]
[329290248,1718218259875,-2249.61,0.00019452,2]
[329290249,1718218259885,-2948.13,0.00019452,2]
[329290250,1718218259897,-963.91,0.00019452,2]
[329290251,1718218259909,-6539.54,0.00019452,2]
[329290252,1718218259920,-800.82,0.00019452,2]
[329290253,1718218259931,-691.21,0.00019452,2]
[329290254,1718218259943,-668.25,0.00019452,2]
[329290255,1718218259956,-1002.76,0.00019452,2]
[329290256,1718218259968,-500.0,0.00019452,2]
[329290257,1718218259980,-500.0,0.00019452,2]
[329290258,1718218259992,-500.0,0.00019452,2]
[329290259,1718218260004,-500.0,0.00019452,2]
[329290260,1718218260029,-2159.14,0.00019452,2]
[329290261,1718218260046,-500.0,0.00019452,2]
[329290262,1718218260086,-1686.97,0.00019452,2]
[329290263,1718218260104,-826.24,0.00019452,2]
[329290264,1718218260139,-789.26,0.00019452,2]
[329290265,1718218260157,-555.37047904,0.00019452,2]
[329290266,1718218260172,-925.88,0.00019452,2]
[329290267,1718218260189,-1952.53,0.00019452,2]
[329290268,1718218260208,-1416.41,0.00019452,2]
[329290269,1718218260225,-203.42,0.00019452,2]
[329290270,1718218260239,-153.66282,0.000195,2]
[329290271,1718218260257,-1115.187625,0.000195,2]
[329290272,1718218260269,-155.0,0.0001956,2]
[329290273,1718218260281,-202.7,0.00019566,2]
[329290274,1718218260295,-151.0,0.00019566,2]
[329290275,1718218260309,-151.0,0.00019599,2]
[329290276,1718218260320,-1002.29928114,0.000196,2]
[329290277,1718218260331,-306.0,0.000196,2]
[329290278,1718218260342,-151.0,0.00019626,2]
[329290279,1718218260353,-151.0,0.00019626,2]
[329290280,1718218260368,-151.0,0.00019626,2]
[329290281,1718218260393,-151.0,0.00019626,2]
[329290282,1718218260407,-151.0,0.00019725,2]
[329290283,1718218260419,-619.2,0.00019726,2]
[329290284,1718218260431,-500.0,0.00019726,2]
[329290285,1718218260450,-628.72,0.00019726,2]
[329290286,1718218260476,-845.56,0.00019726,2]
[329290287,1718218260490,-151.0,0.00019726,2]
[329290288,1718218260504,-500.0,0.00019726,2]
[329290289,1718218260515,-813.0,0.00019726,2]
[329290290,1718218260527,-915.71,0.00019726,2]
[329290291,1718218260538,-151.0,0.00019726,2]
[329290292,1718218260682,-706.56,0.00019726,2]
[329290293,1718218260696,-1091.02,0.00019726,2]
[329290294,1718218260721,-500.0,0.00019726,2]
[329290295,1718218260743,-207.216664,0.00019726,2]
[329290296,1718218260767,-207.216664,0.00019726,2]
[329290297,1718218260794,-500.0,0.00019726,2]
[329290298,1718218260810,-195.912788,0.00019726,2]
[329290299,1718218260832,-195.912788,0.00019726,2]
[329290300,1718218260845,-996.12,0.00019726,2]
[329290301,1718218260868,-642.09,0.00019726,2]
[329290302,1718218260879,-5333.99,0.00019726,2]
[329290303,1718218260895,-1006.0,0.00019726,2]
[329290304,1718218260916,-500.0,0.00019726,2]
[329290305,1718218260936,-739.73,0.00019726,2]
[329290306,1718218260951,-1267.92,0.00019726,2]
[329290307,1718218260965,-4871.15385518,0.00019726,2]
[329290308,1718218260990,-3665.94614482,0.00019726,2]
[329290309,1718218261002,-599.08,0.00019726,2]
[329290310,1718218261023,-5692.93,0.00019726,2]
[329290311,1718218261035,-2249.61,0.00019726,2]
[329290312,1718218261046,-2028.03385518,0.00019726,2]
[329290313,1718218261076,-920.09614482,0.00019726,2]
[329290314,1718218261087,-151.0,0.00019726,2]
[329290315,1718218261097,-963.91,0.00019726,2]
[329290316,1718218261108,-6539.54,0.00019726,2]
[329290317,1718218261121,-800.82,0.00019726,2]
[329290318,1718218261132,-283.963508,0.00019726,2]
[329290319,1718218261143,-283.963508,0.00019726,2]
[329290320,1718218261154,-691.21,0.00019726,2]
[329290321,1718218261165,-668.25,0.00019726,2]
[329290322,1718218261176,-1002.76,0.00019726,2]
[329290323,1718218261187,-500.0,0.00019726,2]
[329290324,1718218261199,-500.0,0.00019726,2]
[329290325,1718218261210,-500.0,0.00019726,2]
[329290326,1718218261220,-369.96,0.00019726,2]